fUSD/lending_fUSD_20241121
["ID","MTS","AMOUNT","RATE_DAILY","PERIOD"]
[342884999,1732193460190,-500.0,0.00041369,18]
[342885000,1732193460201,-500.0,0.00041369,18]
[342885001,1732193460212,-500.0,0.00041369,18]
[342885002,1732193460222,-500.0,0.00041369,18]
[342885003,1732193460232,-500.0,0.00041369,18]
[342885004,1732193460242,-759.34,0.00041369,18]
[342885005,1732193460251,-538.23,0.00041369,18]
[342885006,1732193460261,-570.06,0.00041369,18]
[342885007,1732193460271,-1004.96,0.00041369,18]
[342885008,1732193460281,-537.99,0.00041369,18]
[342885009,1732193460291,-500.0,0.00041369,18]
[342885010,1732193460301,-2323.3,0.00041369,18]
[342885011,1732193460311,-500.0,0.00041369,18]
[342885012,1732193460320,-500.0,0.00041369,18]
[342885013,1732193460329,-1197.22,0.00041369,18]
[342885014,1732193460339,-500.0,0.00041369,18]
[342885015,1732193460349,-2114.88,0.00041369,18]
[342885016,1732193460359,-500.0,0.00041369,18]
[342885017,1732193460375,-500.0,0.00041369,18]
[342885018,1732193460385,-500.0,0.00041369,18]
[342885019,1732193460394,-500.0,0.00041369,18]
[342885020,1732193460404,-500.0,0.00041369,18]
[342885021,1732193460414,-500.0,0.00041369,18]
[342885022,1732193460424,-500.0,0.00041369,18]
[342885023,1732193460434,-500.0,0.00041369,18]
[342885024,1732193460443,-500.0,0.00041369,18]
[342885025,1732193460453,-500.0,0.00041369,18]
[342885026,1732193460462,-500.0,0.00041369,18]
[342885027,1732193460472,-556.7,0.00041369,18]
[342885028,1732193460481,-500.0,0.00041369,18]
[342885029,1732193460492,-500.0,0.00041369,18]
[342885030,1732193460501,-500.0,0.00041369,18]
[342885031,1732193460510,-500.0,0.00041369,18]
[342885032,1732193460519,-1106.79,0.00041369,18]
[342885033,1732193460528,-1008.65,0.00041369,18]
[342885034,1732193460538,-500.0,0.00041369,18]
[342885035,1732193460548,-500.0,0.00041369,18]
[342885036,1732193460557,-500.0,0.00041369,18]
[342885037,1732193460566,-1686.51,0.00041369,18]
[342885038,1732193460575,-1045.01,0.00041369,18]
[342885039,1732193460585,-500.0,0.00041369,18]
[342885040,1732193460594,-698.07,0.00041369,18]
[342885041,1732193460603,-500.0,0.00041369,18]
[342885042,1732193460612,-500.0,0.00041369,18]
[342885043,1732193460624,-960.17,0.00041369,18]
[342885044,1732193460634,-500.0,0.00041369,18]
[342885045,1732193460642,-500.0,0.00041369,18]
[342885046,1732193460651,-570.38,0.00041369,18]
[342885047,1732193460660,-500.0,0.00041369,18]
[342885048,1732193460670,-500.0,0.00041369,18]
[342885049,1732193460679,-1028.69,0.00041369,18]
[342885050,1732193460688,-1154.8,0.00041369,18]
[342885051,1732193460697,-500.0,0.00041369,18]
[342885052,1732193460706,-824.01,0.00041369,18]
[342885053,1732193460716,-627.03,0.00041369,18]
[342885054,1732193460726,-3104.8,0.00041369,18]
[342885055,1732193460735,-4374.42,0.00041369,18]
[342885056,1732193460744,-500.0,0.00041369,18]
[342885057,1732193460753,-500.0,0.00041369,18]
[342885058,1732193460763,-1543.69,0.00041369,18]
[342885059,1732193460772,-500.0,0.00041369,18]
[342885060,1732193460781,-659.82,0.00041369,18]
[342885061,1732193460791,-1881.66,0.00041369,18]
[342885062,1732193460801,-500.0,0.00041369,18]
[342885063,1732193460810,-692.48,0.00041369,18]
[342885064,1732193460821,-877.63,0.00041369,18]
[342885065,1732193460830,-1867.36,0.00041369,18]
[342885066,1732193460840,-500.0,0.00041369,18]
[342885067,1732193460850,-520.56,0.00041369,18]
[342885068,1732193460859,-1262.21,0.00041369,18]
[342885069,1732193460869,-500.0,0.00041369,18]
[342885070,1732193460882,-500.0,0.00041369,18]
[342885071,1732193460892,-500.0,0.00041369,18]
[342885072,1732193460902,-500.0,0.00041369,18]
[342885073,1732193460911,-619.35,0.00041369,18]
[342885074,1732193460921,-2091.82,0.00041369,18]
[342885075,1732193460930,-500.0,0.00041369,18]
[342885076,1732193460940,-500.0,0.00041369,18]
[342885077,1732193460949,-500.0,0.00041369,18]
[342885078,1732193460959,-741.12,0.00041369,18]
[342885079,1732193460968,-699.22,0.00041369,18]
[342885080,1732193460978,-500.0,0.00041369,18]
[342885081,1732193460987,-578.03,0.00041369,18]
[342885082,1732193460997,-764.25,0.00041369,18]
[342885083,1732193461007,-1503.81,0.00041369,18]
[342885084,1732193461017,-500.0,0.00041369,18]
[342885085,1732193461029,-500.0,0.00041369,18]
[342885086,1732193461039,-983.12,0.00041369,18]
[342885087,1732193461051,-1348.99,0.00041369,18]
[342885088,1732193461061,-500.0,0.00041369,18]
[342885089,1732193461071,-500.0,0.00041369,18]
[342885090,1732193461082,-894.29,0.00041369,18]
[342885091,1732193461091,-500.0,0.00041369,18]
[342885092,1732193461103,-1424.32,0.00041369,18]
[342885093,1732193461113,-662.43,0.00041369,18]
[342885094,1732193461126,-675.8,0.00041369,18]
[342885095,1732193461137,-526.2,0.00041369,18]
[342885096,1732193461147,-500.0,0.00041369,18]
[342885097,1732193461158,-3247.66,0.00041369,18]
[342885098,1732193461168,-839.91,0.00041369,18]
[342885099,1732193461178,-703.47,0.00041369,18]
[342885100,1732193461188,-828.14,0.00041369,18]
[342885101,1732193461197,-1118.08,0.00041369,18]
[342885102,1732193461207,-1134.9,0.00041369,18]
[342885103,1732193461217,-5979.09,0.00041369,18]
[342885104,1732193461227,-4112.9,0.00041369,18]
[342885105,1732193461236,-1000.0,0.00041369,18]
[342885106,1732193461246,-1079.42,0.00041369,18]
[342885107,1732193461256,-500.0,0.00041369,18]
[342885108,1732193461266,-500.0,0.00041369,18]
[342885109,1732193461276,-884.23,0.00041369,18]
[342885110,1732193461286,-801.78,0.00041369,18]
[342885111,1732193461296,-500.0,0.00041369,18]
[342885112,1732193461306,-1040.97,0.00041369,18]
[342885113,1732193461316,-500.0,0.00041369,18]
[342885114,1732193461325,-523.34,0.00041369,18]
[342885115,1732193461335,-500.0,0.00041369,18]
[342885116,1732193461345,-500.0,0.00041369,18]
[342885117,1732193461354,-500.0,0.00041369,18]
[342885118,1732193461364,-1064.43,0.00041369,18]
[342885119,1732193461376,-500.0,0.00041369,18]
[342885120,1732193461386,-2289.26,0.00041369,18]
[342885121,1732193461396,-500.0,0.00041369,18]
[342885122,1732193461406,-500.39,0.00041369,18]
[342885123,1732193461416,-1129.13,0.00041369,18]
[342885124,1732193461426,-1390.63,0.00041369,18]
[342885125,1732193461436,-500.0,0.00041369,18]
[342885126,1732193461445,-500.0,0.00041369,18]
[342885127,1732193461454,-1500.0,0.00041369,120]
[342885128,1732193461464,-500.0,0.00041369,18]
[342885129,1732193461473,-500.0,0.00041369,18]
[342885130,1732193461483,-500.0,0.00041369,18]
[342885131,1732193461493,-606.62,0.00041369,18]
[342885132,1732193461502,-543.315955,0.00041369,18]
[342885133,1732193461511,-2479.68,0.00041369,18]
[342885134,1732193461521,-500.0,0.00041369,18]
[342885135,1732193461531,-505.2176752,0.00041369,18]
[342885136,1732193461541,-500.0,0.00041369,18]
[342885137,1732193461551,-500.0,0.00041369,18]
[342885138,1732193461561,-1442.89,0.00041369,18]
[342885139,1732193461571,-2559.42,0.00041369,18]
[342885140,1732193461581,-1230.89,0.00041369,18]
[342885141,1732193461591,-293.12377349,0.00041369,18]
[342885142,1732193461600,-500.0,0.00041369,18]
[342885143,1732193461609,-500.0,0.00041369,18]
[342885144,1732193461619,-500.0,0.00041369,18]
[342885145,1732193461632,-680.76,0.00041369,18]
[342885146,1732193461642,-1162.78,0.00041369,18]
[342885147,1732193461651,-500.0,0.00041369,18]
[342885148,1732193461661,-2304.88,0.00041369,18]
[342885149,1732193461671,-5701.38,0.00041369,18]
[342885150,1732193461681,-500.0,0.00041369,18]
[342885151,1732193461690,-853.44,0.00041369,18]
[342885152,1732193461699,-947.61,0.00041369,18]
[342885153,1732193461709,-732.8,0.00041369,18]
[342885154,1732193461718,-682.01,0.00041369,18]
[342885155,1732193461728,-1256.49,0.00041369,18]
[342885156,1732193461737,-500.0,0.00041369,18]
[342885157,1732193461747,-4177.45,0.00041369,18]
[342885158,1732193461756,-581.65,0.00041369,18]
[342885159,1732193461766,-1659.77,0.00041369,18]
[342885160,1732193461775,-610.9,0.00041369,18]
[342885161,1732193461784,-500.0,0.00041369,18]
[342885162,1732193461794,-500.0,0.00041369,18]
[342885163,1732193461803,-1208.12,0.00041369,18]
[342885164,1732193461812,-858.02,0.00041369,18]
[342885165,1732193461822,-856.84,0.00041369,18]
[342885166,1732193461831,-973.0,0.00041369,18]
[342885167,1732193461842,-500.0,0.00041369,18]
[342885168,1732193461851,-500.0,0.00041369,18]
[342885169,1732193461864,-500.0,0.00041369,18]
[342885170,1732193461880,-2492.53,0.00041369,18]
[342885171,1732193461896,-1270.55,0.00041369,18]
[342885172,1732193461907,-969.02,0.00041369,18]
[342885173,1732193461916,-4203.93,0.00041369,18]
[342885174,1732193461926,-666.56,0.00041369,18]
[342885175,1732193461936,-629.18,0.00041369,18]
[342885176,1732193461945,-500.0,0.00041369,18]
[342885177,1732193461955,-500.0,0.00041369,18]
[342885178,1732193461965,-5899.16,0.00041369,18]
[342885179,1732193461975,-500.0,0.00041369,18]
[342885180,1732193461986,-500.0,0.00041369,18]
[342885181,1732193461995,-1437.91,0.00041369,18]
[342885182,1732193462006,-500.0,0.00041369,18]
[342885183,1732193462015,-500.0,0.00041369,18]
[342885184,1732193462025,-534.64,0.00041369,18]
[342885185,1732193462035,-1024.52,0.00041369,18]
[342885186,1732193462047,-1068.52,0.00041369,18]
[342885187,1732193462058,-500.0,0.00041369,18]
[342885188,1732193462068,-500.0,0.00041369,18]
[342885189,1732193462078,-500.0,0.00041369,18]
[342885190,1732193462089,-968.55,0.00041369,18]
[342885191,1732193462099,-500.0,0.00041369,18]
[342885192,1732193462108,-587.55,0.00041369,18]
[342885193,1732193462118,-1850.36,0.00041369,18]
[342885194,1732193462131,-500.0,0.00041369,18]
[342885195,1732193462141,-3517.11,0.00041369,18]
[342885196,1732193462150,-1105.11,0.00041369,18]
[342885197,1732193462160,-500.0,0.00041369,18]
[342885198,1732193462169,-500.0,0.00041369,18]
[342885199,1732193462179,-500.0,0.00041369,18]
[342885200,1732193462188,-458.80918232,0.00041369,18]
[342885201,1732193462198,-500.0,0.00041369,18]
[342885202,1732193462207,-518.5,0.00041369,18]
[342885203,1732193462217,-500.0,0.00041369,18]
[342885204,1732193462227,-500.0,0.00041369,18]
[342885205,1732193462236,-500.0,0.00041369,18]
[342885206,1732193462246,-727.21,0.00041369,18]
[342885207,1732193462255,-500.0,0.00041369,18]
[342885208,1732193462268,-935.3,0.00041369,18]
[342885209,1732193462282,-638.42,0.00041369,18]
[342885210,1732193462291,-500.0,0.00041369,18]
[342885211,1732193462300,-500.0,0.00041369,18]
[342885212,1732193462310,-906.77,0.00041369,18]
[342885213,1732193462320,-1707.46,0.00041369,18]
[342885214,1732193462330,-500.0,0.00041369,18]
[342885215,1732193462340,-500.0,0.00041369,18]
[342885216,1732193462349,-919.45,0.00041369,18]
[342885217,1732193462358,-500.0,0.00041369,18]
[342885218,1732193462368,-1176.57,0.00041369,18]
[342885219,1732193462475,-850.06,0.00041369,18]
[342885220,1732193462485,-371.25673842,0.00041369,18]
[342885221,1732193462496,-500.0,0.00041369,18]
[342885222,1732193462506,-500.0,0.00041369,18]
[342885223,1732193462515,-500.0,0.00041369,18]
[342885224,1732193462525,-588.63,0.00041369,18]
[342885225,1732193462534,-533.53,0.00041369,18]
[342885226,1732193462544,-1459.12,0.00041369,18]
[342885227,1732193462553,-500.0,0.00041369,18]
[342885228,1732193462563,-2293.56,0.00041369,18]
[342885229,1732193462573,-500.0,0.00041369,18]
[342885230,1732193462584,-613.67,0.00041369,18]
[342885231,1732193462594,-500.0,0.00041369,18]
[342885232,1732193462605,-500.0,0.00041369,18]
[342885233,1732193462614,-500.0,0.00041369,18]
[342885234,1732193462629,-3091.86,0.00041369,18]
[342885235,1732193462638,-500.0,0.00041369,18]
[342885236,1732193462647,-1866.72,0.00041369,18]
[342885237,1732193462656,-767.19,0.00041369,18]
[342885238,1732193462666,-2055.74,0.00041369,18]
[342885239,1732193462674,-500.0,0.00041369,18]
[342885240,1732193462684,-597.33,0.00041369,18]
[342885241,1732193462693,-1194.98,0.00041369,18]
[342885242,1732193462703,-500.0,0.00041369,18]
[342885243,1732193462713,-500.0,0.00041369,18]
[342885244,1732193462722,-2561.84,0.00041369,18]
[342885245,1732193462731,-500.0,0.00041369,18]
[342885246,1732193462740,-809.13,0.00041369,18]
[342885247,1732193462749,-500.0,0.00041369,18]
[342885248,1732193462759,-826.55,0.00041369,18]
[342885249,1732193462769,-1338.77,0.00041369,18]
[342885250,1732193462778,-500.0,0.00041369,18]
[342885251,1732193462787,-2267.72,0.00041369,18]
[342885252,1732193462797,-500.0,0.00041369,18]
[342885253,1732193462806,-2439.07,0.00041369,18]
[342885254,1732193462815,-1250.65,0.00041369,18]
[342885255,1732193462825,-2156.19,0.00041369,18]
[342885256,1732193462834,-841.9,0.00041369,18]
[342885257,1732193462842,-1547.09,0.00041369,18]
[342885258,1732193462851,-3654.18,0.00041369,18]
[342885259,1732193462861,-500.0,0.00041369,18]
[342885260,1732193462870,-3101.99,0.00041369,18]
[342885261,1732193462883,-826.52,0.00041369,18]
[342885262,1732193462893,-697.46,0.00041369,18]
[342885263,1732193462903,-675.85,0.00041369,18]
[342885264,1732193462913,-2341.51,0.00041369,18]
[342885265,1732193462923,-630.3,0.00041369,18]
[342885266,1732193462932,-369.59782289,0.00041369,18]
[342885267,1732193462943,-500.0,0.00041369,18]
[342885268,1732193462953,-4303.24,0.00041369,18]
[342885269,1732193462962,-765.0,0.00041369,18]
[342885270,1732193462976,-500.0,0.00041369,18]
[342885271,1732193462985,-500.0,0.00041369,18]
[342885272,1732193462994,-500.0,0.00041369,18]
[342885273,1732193463003,-500.0,0.00041369,18]
[342885274,1732193463013,-390.96651625,0.00041369,18]
[342885275,1732193463022,-5250.49,0.00041369,18]
[342885276,1732193463032,-3066.52,0.00041369,18]
[342885277,1732193463045,-624.87,0.00041369,18]
[342885278,1732193463058,-1066.76,0.00041369,18]
[342885279,1732193463068,-500.0,0.00041369,18]
[342885280,1732193463078,-1414.15,0.00041369,18]
[342885281,1732193463087,-500.0,0.00041369,18]
[342885282,1732193463098,-3242.57,0.00041369,18]
[342885283,1732193463107,-766.07,0.00041369,18]
[342885284,1732193463116,-519.1,0.00041369,18]
[342885285,1732193463130,-500.0,0.00041369,18]
[342885286,1732193463140,-500.0,0.00041369,18]
[342885287,1732193463150,-7958.94,0.00041369,18]
[342885288,1732193463159,-639.67,0.00041369,18]
[342885289,1732193463169,-1107.56,0.00041369,18]
[342885290,1732193463179,-500.0,0.00041369,18]
[342885291,1732193463189,-6713.05,0.00041369,18]
[342885292,1732193463198,-500.0,0.00041369,18]
[342885293,1732193463208,-834.43,0.00041369,18]
[342885294,1732193463218,-921.12,0.00041369,18]
[342885295,1732193463228,-2334.59,0.00041369,18]
[342885296,1732193463237,-3262.93,0.00041369,18]
[342885297,1732193463247,-500.0,0.00041369,18]
[342885298,1732193463256,-500.0,0.00041369,18]
[342885299,1732193463266,-500.0,0.00041369,18]
[342885300,1732193463276,-500.0,0.00041369,18]
[342885301,1732193463286,-500.0,0.00041369,18]
[342885302,1732193463295,-2000.0,0.00041369,7]
[342885303,1732193463305,-1965.95,0.00041369,18]
[342885304,1732193463315,-511.4,0.00041369,18]
[342885305,1732193463326,-500.0,0.00041369,18]
[342885306,1732193463336,-7977.49,0.00041369,18]
[342885307,1732193463345,-905.57,0.00041369,18]
[342885308,1732193463355,-500.0,0.00041369,18]
[342885309,1732193463365,-1013.75,0.00041369,18]
[342885310,1732193463379,-500.0,0.00041369,18]
[342885311,1732193463389,-200.0,0.00041369,7]
[342885312,1732193463399,-500.0,0.00041369,18]
[342885313,1732193463409,-500.0,0.00041369,18]
[342885314,1732193463419,-500.0,0.00041369,18]
[342885315,1732193463430,-500.0,0.00041369,18]
[342885316,1732193463440,-500.0,0.00041369,18]
[342885317,1732193463450,-2467.09,0.00041369,18]
[342885318,1732193463459,-925.12,0.00041369,18]
[342885319,1732193463469,-155.5756626,0.00041369,18]
[342885320,1732193463478,-500.0,0.00041369,18]
[342885321,1732193463488,-500.0,0.00041369,18]
[342885322,1732193463497,-500.0,0.00041369,18]
[342885323,1732193463506,-500.0,0.00041369,18]
[342885324,1732193463515,-4435.79,0.00041369,18]
[342885325,1732193463524,-2572.29,0.00041369,18]
[342885326,1732193463534,-620.59,0.00041369,18]
[342885327,1732193463543,-826.37,0.00041369,7]
[342885328,1732193463552,-500.0,0.00041369,18]
[342885329,1732193463562,-500.0,0.00041369,18]
[342885330,1732193463571,-1261.61,0.00041369,18]
[342885331,1732193463581,-591.92,0.00041369,18]
[342885332,1732193463591,-500.0,0.00041369,18]
[342885333,1732193463600,-500.0,0.00041369,18]
[342885334,1732193463609,-500.0,0.00041369,18]
[342885335,1732193463619,-810.06,0.00041369,18]
[342885336,1732193463635,-500.0,0.00041369,18]
[342885337,1732193463645,-584.54680628,0.00041369,18]
[342885338,1732193463654,-2568.51,0.00041369,18]
[342885339,1732193463664,-9790.06,0.00041369,18]
[342885340,1732193463674,-656.88,0.00041369,18]
[342885341,1732193463684,-621.8,0.00041369,18]
[342885342,1732193463693,-500.0,0.00041369,18]
[342885343,1732193463703,-500.0,0.00041369,18]
[342885344,1732193463713,-500.0,0.00041369,18]
[342885345,1732193463722,-500.0,0.00041369,18]
[342885346,1732193463733,-544.37,0.00041369,18]
[342885347,1732193463743,-910.6,0.00041369,18]
[342885348,1732193463753,-500.0,0.00041369,18]
[342885349,1732193463763,-7942.32,0.00041369,18]
[342885350,1732193463773,-1350.41,0.00041369,18]
[342885351,1732193463783,-500.0,0.00041369,18]
[342885352,1732193463794,-703.43,0.00041369,18]
[342885353,1732193463804,-500.0,0.00041369,18]
[342885354,1732193463814,-34341.22,0.00041369,18]
[342885355,1732193463823,-2454.82,0.00041369,18]
[342885356,1732193463833,-687.68,0.00041369,18]
[342885357,1732193463842,-3219.72,0.00041369,18]
[342885358,1732193463852,-500.0,0.00041369,18]
[342885359,1732193463862,-548.17,0.00041369,18]
[342885360,1732193463872,-2144.47,0.00041369,18]
[342885361,1732193463886,-447.26709097,0.00041369,18]
[342885362,1732193463897,-500.0,0.00041373,10]
[342885363,1732193463906,-160.22674808,0.00041373,10]
[342885364,1732193463916,-150.0,0.00041375,2]
[342885365,1732193463925,-1500.0,0.00041375,7]
[342885366,1732193463934,-150.0,0.00041382,2]
[342885367,1732193463944,-1695.98788565,0.00041385,15]
[342885368,1732193463954,-1500.0,0.00041399,7]
[342885369,1732193463963,-150.0,0.00041406,2]
[342885370,1732193463973,-150.0,0.0004142,30]
[342885371,1732193463982,-969.18,0.0004142,30]
[342885372,1732193463992,-969.18,0.0004142,30]
[342885373,1732193464002,-969.18,0.0004142,30]
[342885374,1732193464011,-150.0,0.00041432,2]
[342885375,1732193464021,-975.2505263,0.00041434,7]
[342885376,1732193464030,-150.0,0.00041456,2]
[342885377,1732193464040,-500.0,0.00041465,7]
[342885378,1732193464052,-500.0,0.00041465,7]
[342885379,1732193464061,-500.0,0.00041465,7]
[342885380,1732193464071,-500.0,0.00041465,7]
[342885381,1732193464081,-500.0,0.00041465,7]
[342885382,1732193464091,-500.0,0.00041465,7]
[342885383,1732193464101,-500.0,0.00041465,7]
[342885384,1732193464111,-500.0,0.00041465,7]
[342885385,1732193464121,-371.76,0.00041465,7]
[342885386,1732193464134,-500.0,0.00041465,7]
[342885387,1732193464144,-500.0,0.00041465,7]
[342885388,1732193464154,-500.0,0.00041465,7]
[342885389,1732193464164,-500.0,0.00041465,7]
[342885390,1732193464175,-500.0,0.00041465,7]
[342885391,1732193464185,-500.0,0.00041465,7]
[342885392,1732193464196,-500.0,0.00041465,7]
[342885393,1732193464206,-500.0,0.00041465,7]
[342885394,1732193464216,-500.0,0.00041465,7]
[342885395,1732193464227,-500.0,0.00041465,7]
[342885396,1732193464237,-500.0,0.00041465,7]
[342885397,1732193464247,-500.0,0.00041465,7]
[342885398,1732193464257,-500.0,0.00041465,7]
[342885399,1732193464268,-500.0,0.00041465,7]
[342885400,1732193464277,-500.0,0.00041465,7]
[342885401,1732193464288,-304.54,0.00041465,7]
[342885402,1732193464299,-150.0,0.00041474,2]
[342885403,1732193464308,-470.89955753,0.00041475,28]
[342885404,1732193464318,-230.35668,0.00041488,30]
[342885405,1732193464328,-150.0,0.00041495,2]
[342885406,1732193464339,-150.0,0.000415,2]
[342885407,1732193464350,-150.0,0.00041505,2]
[342885408,1732193464366,-505.0,0.00041514,71]
[342885409,1732193464379,-150.0,0.00041526,7]
[342885410,1732193464389,-150.0,0.0004153,2]
[342885411,1732193464399,-150.0,0.00041531,2]
[342885412,1732193464409,-180.91644052,0.00041543,2]
[342885413,1732193464419,-150.0,0.00041549,7]
[342885414,1732193464429,-150.0,0.00041552,2]
[342885415,1732193464439,-150.0,0.00041558,7]
[342885416,1732193464448,-500.0,0.00041563,120]
[342885417,1732193464458,-150.0,0.00041564,2]
[342885418,1732193464468,-150.0,0.00041575,2]
[342885419,1732193464477,-150.0,0.00041585,7]
[342885420,1732193464486,-180.4405042,0.00041615,4]
[342885421,1732193464496,-150.0,0.00041619,2]
[342885422,1732193464505,-500.0,0.00041621,10]
[342885423,1732193464515,-1000.0,0.00041624,2]
[342885424,1732193464524,-150.0,0.00041625,2]
[342885425,1732193464534,-150.0,0.00041628,2]
[342885426,1732193464543,-1500.0,0.00041628,7]
[342885427,1732193464553,-150.0,0.00041629,7]
[342885428,1732193464562,-1000.0,0.00041642,2]
[342885429,1732193464571,-6904.81570574,0.00041643,3]
[342885430,1732193465139,-322.5100008,0.00041643,3]
[342885431,1732193465151,-2429.45455556,0.00041643,3]
[342885432,1732193465803,-150.26,0.00040115,2]
[342885433,1732193465813,-438.49220837,0.00041095,18]
[342885434,1732193465822,-150.0,0.00041095,18]
[342885435,1732193465831,-1108.18,0.00041283,30]
[342885436,1732193465841,-153.0,0.00041296,31]
[342885437,1732193465851,-153.0,0.00041296,31]
[342885438,1732193465860,-59509.22083781,0.00041643,3]
[342885439,1732193465882,-153.0,0.00041296,31]
[342885440,1732193465892,-19398.3710604,0.00041643,3]
[342885441,1732193465904,-31880.29759497,0.00041643,3]
[342885442,1732193465917,-13501.03051902,0.00041643,3]
[342885443,1732193465934,-3320.93524114,0.00041643,3]
[342885444,1732193465946,-18512.48510235,0.00041643,3]
[342885445,1732193465958,-1704.72349636,0.00041643,3]
[342885446,1732193465970,-533.2881054,0.00041643,3]
[342885447,1732193466002,-267613.61868849,0.00041643,3]
[342885448,1732193466012,-12036.18276926,0.00041643,2]
[342885449,1732193466022,-500.0,0.00041643,7]
[342885450,1732193466032,-500.0,0.00041643,18]
[342885451,1732193466045,-500.0,0.00041643,18]
[342885452,1732193466055,-500.0,0.00041643,18]
[342885453,1732193466065,-500.0,0.00041643,18]
[342885454,1732193466075,-200.0,0.00041643,7]
[342885455,1732193466085,-500.0,0.00041643,18]
[342885456,1732193466098,-628.2,0.00041643,18]
[342885457,1732193466107,-1037.71,0.00041643,18]
[342885458,1732193466118,-500.0,0.00041643,18]
[342885459,1732193466134,-500.0,0.00041643,18]
[342885460,1732193466145,-731.52,0.00041643,18]
[342885461,1732193466155,-500.0,0.00041643,18]
[342885462,1732193466166,-1107.864162,0.00041643,18]
[342885463,1732193466176,-184.75393,0.00041643,18]
[342885464,1732193466186,-154.589909,0.00041643,18]
[342885465,1732193466196,-500.0,0.00041643,18]
[342885466,1732193466207,-1241.3,0.00041643,18]
[342885467,1732193466217,-1088.78,0.00041643,18]
[342885468,1732193466227,-500.0,0.00041643,18]
[342885469,1732193466238,-706.93,0.00041643,18]
[342885470,1732193466248,-500.0,0.00041643,18]
[342885471,1732193466259,-500.0,0.00041643,18]
[342885472,1732193466269,-500.0,0.00041643,18]
[342885473,1732193466279,-500.0,0.00041643,18]
[342885474,1732193466289,-500.0,0.00041643,18]
[342885475,1732193466299,-500.0,0.00041643,18]
[342885476,1732193466308,-414.81739369,0.00041643,18]
[342885477,1732193466318,-500.0,0.00041643,18]
[342885478,1732193466329,-1196.42,0.00041643,18]
[342885479,1732193466339,-500.0,0.00041643,18]
[342885480,1732193466349,-500.0,0.00041643,18]
[342885481,1732193466358,-500.0,0.00041643,18]
[342885482,1732193466368,-794.11,0.00041643,18]
[342885483,1732193466381,-500.0,0.00041643,18]
[342885484,1732193466391,-2000.0,0.00041643,30]
[342885485,1732193466402,-500.0,0.00041643,18]
[342885486,1732193466412,-938.93,0.00041643,18]
[342885487,1732193466423,-1359.5,0.00041643,18]
[342885488,1732193466433,-500.0,0.00041643,18]
[342885489,1732193466444,-500.0,0.00041643,18]
[342885490,1732193466454,-1025.1,0.00041643,18]
[342885491,1732193466465,-863.08,0.00041643,18]
[342885492,1732193466474,-500.0,0.00041643,18]
[342885493,1732193466484,-500.0,0.00041643,18]
[342885494,1732193466494,-500.0,0.00041643,18]
[342885495,1732193466504,-526.23,0.00041643,18]
[342885496,1732193466514,-500.0,0.00041643,18]
[342885497,1732193466524,-827.93,0.00041643,18]
[342885498,1732193466534,-500.0,0.00041643,18]